bitfinex/quotes_BTCUSD_20250719
["timestamp","ask_amount","ask_price","bid_price","bid_amount"]
[1752887830262,0.04499335,118010.0,118000.0,0.5050175]
[1752887830711,0.03652,118010.0,118000.0,0.5050175]
[1752887831391,0.0314,118010.0,118000.0,0.81877263]
[1752887831615,0.0314,118010.0,118000.0,0.59261778]
[1752887831848,0.03338,118010.0,118000.0,0.59261778]
[1752887832052,0.03652,118010.0,118000.0,0.59261778]
[1752887837809,0.03652,118010.0,118000.0,0.36646293]
[1752887837810,0.02072,118010.0,118000.0,0.36646293]
[1752887837934,0.04439321,118010.0,118000.0,0.59261778]
[1752887838133,0.04439321,118010.0,118000.0,0.59052778]
[1752887838351,0.05286663,118010.0,118000.0,0.59052778]
[1752887838628,0.05286656,118010.0,118000.0,0.59052778]
[1752887839168,0.06133998,118010.0,118000.0,0.59052778]
[1752887840622,0.06133998,118010.0,118000.0,0.36437293]
[1752887840827,0.06133998,118010.0,118000.0,0.59052778]
[1752887841211,0.05286656,118010.0,118000.0,0.59052778]
[1752887841417,0.04439321,118010.0,118000.0,0.59052778]
[1752887841744,0.05286663,118010.0,118000.0,0.59052778]
[1752887843328,0.04439321,118010.0,118000.0,0.59052778]
[1752887844616,0.05286656,118010.0,118000.0,0.59052778]
[1752887844828,0.03592,118010.0,118000.0,0.59052778]
[1752887845033,0.04439328,118010.0,118000.0,0.59052778]
[1752887845253,0.04439328,118010.0,118000.0,0.60052778]
[1752887845683,0.05286677,118010.0,118000.0,0.60052778]
[1752887846129,0.0528667,118010.0,118000.0,0.60052778]
[1752887846316,0.05286663,118010.0,118000.0,0.60052778]
[1752887846529,0.0613402,118010.0,118000.0,0.60052778]
[1752887846741,0.05286663,118010.0,118000.0,0.60052778]
[1752887846955,0.03592,118010.0,118000.0,0.60052778]
[1752887847171,0.04439321,118010.0,118000.0,0.60052778]
[1752887847818,0.05286656,118010.0,118000.0,0.60052778]
[1752887848020,0.06134005,118010.0,118000.0,0.60052778]
[1752887849091,0.05286656,118010.0,118000.0,0.60052778]
[1752887849784,0.04439321,118010.0,118000.0,0.60052778]
[1752887850084,0.04439321,118010.0,118000.0,0.19644031]
[1752887850085,0.23929107,118010.0,118000.0,0.19644031]
[1752887850292,0.06981384,118010.0,118000.0,0.28038859]
[1752887850511,0.07828769,118010.0,118000.0,0.27191452]
[1752887850720,0.07828769,118010.0,118000.0,0.49806937]
[1752887850936,0.06981448,118010.0,118000.0,0.49806937]
[1752887851149,0.22234472,118010.0,118000.0,0.48959516]
[1752887851375,0.24461803,118010.0,118000.0,0.23615485]
[1752887851812,0.24461803,118010.0,118000.0,0.30311485]
[1752887853393,0.24661803,118010.0,118000.0,0.30311485]
[1752887853605,0.24661803,118010.0,118000.0,0.23615485]
[1752887853827,0.24661803,118010.0,118000.0,0.30311485]
[1752887854918,0.24661803,118010.0,118000.0,0.07696]
[1752887855140,0.58661803,118010.0,118000.0,0.01]
[1752887855364,0.58661803,118010.0,118000.0,0.07696]
[1752887856480,0.58661803,118010.0,118000.0,0.01]
[1752887856705,0.67212831,118010.0,118000.0,0.01]
[1752887860385,0.69757531,118010.0,118000.0,0.01]
[1752887864983,0.92373016,118010.0,118000.0,0.01]
[1752887865661,0.69757531,118010.0,118000.0,0.01]
[1752887865869,0.92273016,118010.0,118000.0,0.01]
[1752887866076,0.92573016,118010.0,118000.0,0.01]
[1752887866330,0.92273016,118010.0,118000.0,0.01]
[1752887866541,0.92173016,118010.0,118000.0,0.01]
[1752887866765,0.92873016,118010.0,118000.0,0.011]
[1752887868755,0.70257531,118010.0,118000.0,0.011]
[1752887868977,0.92873016,118010.0,118000.0,0.011]
[1752887869459,0.94327101,118010.0,118000.0,0.011]
[1752887872074,0.99327101,118010.0,118000.0,1e-08]
[1752887876120,0.99127101,118010.0,118000.0,1e-08]
[1752887876333,0.20099682,117990.0,117980.0,0.00014909]
[1752887876545,0.68895199,117990.0,117980.0,0.00014909]
[1752887876755,0.69207199,117990.0,117980.0,0.00014909]
[1752887876992,0.49137114,117990.0,117980.0,0.00014909]
[1752887877197,1.28368084,117990.0,117980.0,0.00014909]
[1752887877415,0.55778757,117970.0,117960.0,0.06777651]
[1752887877635,0.64527785,117970.0,117960.0,0.0682752]
[1752887877852,0.64839785,117970.0,117960.0,0.0682752]
[1752887878055,0.67385485,117970.0,117960.0,0.0682752]
[1752887879269,0.67485485,117970.0,117960.0,0.0722752]
[1752887879490,0.67485485,117970.0,117960.0,0.0732752]
[1752887881339,0.57779317,117970.0,117960.0,0.30988749]
[1752887881512,0.57779317,117970.0,117960.0,0.30141005]
[1752887881862,0.57779317,117970.0,117960.0,0.0752552]
[1752887882276,0.55294457,117970.0,117960.0,0.00747869]
[1752887882674,0.55804457,117970.0,117960.0,0.23363354]
[1752887883590,0.55294457,117970.0,117960.0,0.23363354]
[1752887883810,0.026457,117970.0,117960.0,0.75746536]
[1752887884001,0.02642903,117970.0,117960.0,0.75746536]
[1752887884216,0.02642881,117970.0,117960.0,0.75746536]
[1752887884440,0.01795237,117970.0,117960.0,0.75746536]
[1752887884627,0.02642874,117970.0,117960.0,0.75746536]
[1752887884844,0.02642874,117970.0,117960.0,0.68968885]
[1752887885313,0.02642874,117970.0,117960.0,0.23737915]
[1752887885533,0.04338198,117970.0,117960.0,0.463534]
[1752887885755,0.04338183,117970.0,117960.0,0.463534]
[1752887886043,0.03490525,117970.0,117960.0,0.463534]
[1752887886273,0.00947615,117970.0,117960.0,0.68968885]
[1752887886501,0.01795266,117970.0,117960.0,0.68968885]
[1752887886709,0.02642917,117970.0,117960.0,0.68968885]
[1752887886929,0.01795266,117970.0,117960.0,0.68968885]
[1752887887148,0.02642924,117970.0,117960.0,0.68968885]
[1752887887360,0.00947622,117970.0,117960.0,0.68968885]
[1752887887577,0.01795259,117970.0,117960.0,0.68968885]
[1752887888024,0.0264291,117970.0,117960.0,0.68968885]
[1752887888254,0.001,117970.0,117960.0,0.68968885]
[1752887888491,0.00947622,117970.0,117960.0,0.68968885]
[1752887889384,0.001,117970.0,117960.0,0.77519913]
[1752887889830,0.01795223,117970.0,117960.0,0.77519913]
[1752887890043,0.0179523,117970.0,117960.0,0.77519913]
[1752887890253,0.001,117970.0,117960.0,0.77519913]
[1752887890472,0.00947608,117970.0,117960.0,0.77519913]
[1752887890676,0.001,117970.0,117960.0,0.77519913]
[1752887893606,0.00947608,117970.0,117960.0,0.32288943]
[1752887893813,0.001,117970.0,117960.0,0.77519913]
[1752887896005,0.0264291,117970.0,117960.0,0.74027913]
[1752887896211,0.2234089,117970.0,117960.0,0.48709706]
[1752887896422,0.06547101,117970.0,117960.0,0.49557415]
[1752887896652,0.05699428,117970.0,117960.0,0.50405109]
[1752887896896,0.05387428,117970.0,117960.0,0.50405109]
[1752887897112,0.05189428,117970.0,117960.0,0.50405109]
[1752887897330,0.02642903,117970.0,117960.0,0.50405109]
[1752887897543,0.02642903,117970.0,117960.0,0.73020594]
[1752887897969,0.03490561,117970.0,117960.0,0.73020594]
[1752887898182,0.02642903,117970.0,117960.0,0.73020594]
[1752887899057,0.01795252,117970.0,117960.0,0.73020594]
[1752887900360,0.02642903,117970.0,117960.0,0.73020594]
[1752887901250,0.03490561,117970.0,117960.0,0.73020594]
[1752887901464,0.02642903,117970.0,117960.0,0.73020594]
[1752887901680,0.01795252,117970.0,117960.0,0.73020594]
[1752887902403,0.02642903,117970.0,117960.0,0.76110594]
[1752887902891,0.02642903,117970.0,117960.0,0.73020594]
[1752887903711,0.02642903,117970.0,117960.0,0.27789624]
[1752887903914,0.03490561,117970.0,117960.0,0.73020594]
[1752887904133,0.03490561,117970.0,117960.0,0.71325191]
[1752887904318,0.01795252,117970.0,117960.0,0.73020594]
[1752887904945,0.03490576,117970.0,117960.0,0.73020594]
[1752887905160,0.03490576,117970.0,117960.0,0.721729]
[1752887905592,0.03490576,117970.0,117960.0,0.73020601]
[1752887906038,0.03490568,117970.0,117960.0,0.73020601]
[1752887906253,0.001,117970.0,117960.0,0.85815323]
[1752887906684,0.00947622,117970.0,117960.0,0.85815323]
[1752887907206,0.01795259,117970.0,117960.0,0.85815323]
[1752887907669,0.0264291,117970.0,117960.0,0.85815323]
[1752887907877,0.01795259,117970.0,117960.0,0.85815323]
[1752887908334,0.02642917,117970.0,117960.0,0.85815323]
[1752887908518,0.01795259,117970.0,117960.0,0.85815323]
[1752887908746,0.0264291,117970.0,117960.0,0.85815323]
[1752887908962,0.00947622,117970.0,117960.0,0.85815323]
[1752887909178,0.01795259,117970.0,117960.0,0.85815323]
[1752887909409,0.00947622,117970.0,117960.0,0.85815323]
[1752887909626,0.001,117970.0,117960.0,0.85815323]
[1752887909839,0.00947615,117970.0,117960.0,0.85815323]
[1752887910266,0.001,117970.0,117960.0,0.85815323]
[1752887917757,0.001,117970.0,117960.0,1.43784893]
[1752887917940,0.024774,118000.0,117990.0,0.1949309]
[1752887918299,0.06779693,118000.0,117990.0,0.49015575]
[1752887918454,0.07099693,118000.0,117990.0,0.49015575]
[1752887918612,0.07099693,118000.0,117990.0,0.47957096]
[1752887918824,0.07099693,118000.0,117990.0,0.48804589]
[1752887919028,0.29006222,118000.0,117990.0,0.07543529]
[1752887919228,0.29006222,118000.0,117990.0,0.30159014]
[1752887919675,0.29006222,118000.0,117990.0,0.47109603]
[1752887919899,0.23201481,118000.0,117990.0,0.2534164]
[1752887920072,0.23201481,118000.0,117990.0,0.48804632]
[1752887920278,0.06252329,118000.0,117990.0,0.49652118]
[1752887920749,0.06652329,118000.0,117990.0,0.50499597]
[1752887920953,0.05804879,118000.0,117990.0,0.50499597]
[1752887921158,0.29176645,118000.0,117990.0,0.16950589]
[1752887921372,0.28329282,118000.0,117990.0,0.24494111]
[1752887921584,0.28329282,118000.0,117990.0,0.06696]
[1752887921789,0.21755625,117990.0,117980.0,0.16950808]
[1752887921980,0.22285625,117990.0,117980.0,0.47957466]
[1752887922397,0.23133125,117990.0,117980.0,0.47957466]
[1752887923660,0.23133125,117990.0,117980.0,0.48057466]
[1752887923973,0.06182536,117990.0,117980.0,0.49752589]
[1752887924176,0.07030044,117990.0,117980.0,0.49852589]
[1752887924601,0.06182522,117990.0,117980.0,0.49852589]
[1752887924825,0.07030044,117990.0,117980.0,0.49852589]
[1752887925008,0.07030044,117990.0,117980.0,0.27237104]
[1752887925257,0.07030044,117990.0,117980.0,0.49852589]
[1752887926340,0.06182522,117990.0,117980.0,0.49852589]
[1752887926986,0.05334979,117990.0,117980.0,0.49852589]
[1752887927456,0.05334972,117990.0,117980.0,0.49852589]
[1752887928459,0.04487479,117990.0,117980.0,0.49852589]
[1752887928639,0.05334979,117990.0,117980.0,0.49852589]
[1752887929041,0.04487479,117990.0,117980.0,0.49852589]
[1752887929702,0.0364,117990.0,117980.0,0.50063589]
[1752887929915,0.04487471,117990.0,117980.0,0.50063589]
[1752887930063,0.0533495,117990.0,117980.0,0.50063589]
[1752887930268,0.04487471,117990.0,117980.0,0.50063589]
[1752887930478,0.0381495,117990.0,117980.0,0.50063589]
[1752887930870,0.02647471,117990.0,117980.0,0.50063589]
[1752887931093,0.04317392,118000.0,117990.0,0.18645597]
[1752887931338,0.0156,118000.0,117990.0,0.64935046]
[1752887931498,0.02407392,118000.0,117990.0,0.64935046]
[1752887931697,0.40052105,118010.0,118000.0,0.19491437]
[1752887932051,0.40262048,118010.0,118000.0,0.48802922]
[1752887932720,0.41109426,118010.0,118000.0,0.48802922]
[1752887932924,0.47347582,118010.0,118000.0,0.47955515]
[1752887933154,0.41114413,118010.0,118000.0,0.48802922]
[1752887933414,0.40267035,118010.0,118000.0,0.48802922]
[1752887933846,0.40267035,118010.0,118000.0,0.48902922]
[1752887933847,0.40567035,118010.0,118000.0,0.48902922]
[1752887934017,0.41414413,118010.0,118000.0,0.48902922]
[1752887934225,0.42261798,118010.0,118000.0,0.48902922]
[1752887934438,0.4141447,118010.0,118000.0,0.26287451]
[1752887934618,0.4141447,118010.0,118000.0,0.48902936]
[1752887935051,0.4151447,118010.0,118000.0,0.48902936]
[1752887935252,0.4151447,118010.0,118000.0,0.4975035]
[1752887935923,0.57614837,118010.0,118000.0,0.47208087]
[1752887936132,0.56767466,118010.0,118000.0,0.4805553]
[1752887936338,0.59754167,118010.0,118000.0,0.29411485]
[1752887936862,0.59754167,118010.0,118000.0,0.48055544]
[1752887937070,0.55920081,118010.0,118000.0,0.49750408]
[1752887937283,0.55920081,118010.0,118000.0,0.4890298]
[1752887937512,0.55920081,118010.0,118000.0,0.48902987]
[1752887937738,0.57614823,118010.0,118000.0,0.50597837]
[1752887938067,0.41514428,118010.0,118000.0,0.50597787]
[1752887938261,0.42361813,118010.0,118000.0,0.50597787]
[1752887938510,0.42361813,118010.0,118000.0,0.4975038]
[1752887938904,0.42361813,118010.0,118000.0,0.27134895]
[1752887939113,0.59309529,118010.0,118000.0,0.27134895]
[1752887939317,0.58462194,118010.0,118000.0,0.27134909]
[1752887939566,0.58462194,118010.0,118000.0,0.49750394]
[1752887940193,0.58462194,118010.0,118000.0,0.50597815]
[1752887940451,0.57614837,118010.0,118000.0,0.48902966]
[1752887940687,0.63888536,118010.0,118000.0,0.06796]
[1752887940899,0.63888536,118010.0,118000.0,0.29411485]
[1752887941363,0.63888536,118010.0,118000.0,0.06796]
[1752887941545,0.63888536,118010.0,118000.0,0.29411485]
[1752887942203,0.55920088,118010.0,118000.0,0.29411485]
[1752887942612,0.55920088,118010.0,118000.0,0.001]
[1752887942821,0.55920088,118010.0,118000.0,0.29407485]
[1752887943752,0.55920088,118010.0,118000.0,0.06792]
[1752887945064,0.62612088,118010.0,118000.0,0.29407485]
[1752887945675,0.66459699,118010.0,118000.0,0.29407485]
[1752887946819,0.59767699,118010.0,118000.0,0.29407485]
[1752887951459,0.59767699,118010.0,118000.0,0.06792]
[1752887951668,0.59767699,118010.0,118000.0,0.29407485]
[1752887954406,0.55920088,118010.0,118000.0,0.29407485]
[1752887956540,0.56773402,118010.0,118000.0,0.29407485]
[1752887960183,0.55926017,118010.0,118000.0,0.30254942]
[1752887960404,0.55926017,118010.0,118000.0,0.48051544]
[1752887960625,0.55926017,118010.0,118000.0,0.29407485]
[1752887961038,0.64396326,118010.0,118000.0,0.29407485]
[1752887962754,0.55926017,118010.0,118000.0,0.29407485]
[1752887962959,0.55926017,118010.0,118000.0,0.06792]
[1752887963179,0.55926017,118010.0,118000.0,0.29407485]
[1752887964286,0.55926017,118010.0,118000.0,0.06792]
[1752887964487,0.55926017,118010.0,118000.0,0.29407485]
[1752887965322,0.64396326,118010.0,118000.0,0.29407485]
[1752887967621,0.64396326,118010.0,118000.0,0.06792]
[1752887967855,0.64396326,118010.0,118000.0,0.29407485]
[1752887969394,0.55926017,118010.0,118000.0,0.29407485]
[1752887970770,0.52416017,118010.0,118000.0,0.4824953]
[1752887970987,0.52416017,118010.0,118000.0,0.47402094]
[1752887971387,0.52416017,118010.0,118000.0,0.48249544]
[1752887972735,0.52740017,118010.0,118000.0,0.48249544]
[1752887972976,0.54066825,118010.0,118000.0,0.0699]
[1752887973194,0.55576825,118010.0,118000.0,0.29606636]
[1752887974155,0.55576825,118010.0,118000.0,0.52223272]
[1752887974364,0.54250017,118010.0,118000.0,0.52223272]
[1752887974572,0.52206017,118010.0,118000.0,0.53070729]
[1752887975732,0.52404017,118010.0,118000.0,0.53070729]
[1752887975911,0.52728017,118010.0,118000.0,0.53918179]
[1752887976319,0.52728017,118010.0,118000.0,0.70867331]
[1752887976523,0.35258301,118010.0,118000.0,0.72562166]
[1752887976790,0.02105622,118010.0,118000.0,0.72562166]
[1752887977019,0.01252308,118010.0,118000.0,0.76025166]
[1752887977230,0.0209965,118010.0,118000.0,0.76025166]
[1752887977444,0.02099643,118010.0,118000.0,0.76025166]
[1752887978089,0.02946992,118010.0,118000.0,0.76025166]
[1752887978933,0.02099344,118010.0,118000.0,0.76025166]
[1752887980773,0.00404987,118010.0,118000.0,0.76025166]
[1752887982059,4.987e-05,118010.0,118000.0,0.75925166]
[1752887982285,4.987e-05,118010.0,118000.0,0.76025166]
[1752887982505,4.987e-05,118010.0,118000.0,0.76125166]
[1752887986033,4.987e-05,118010.0,118000.0,0.98741802]
[1752887986257,4.987e-05,118010.0,118000.0,0.76125166]
[1752887990766,4.987e-05,118010.0,118000.0,0.84676194]
[1752887991429,4.987e-05,118010.0,118000.0,1.0729283]
[1752887991642,4.987e-05,118010.0,118000.0,0.84676194]
[1752887992929,4.987e-05,118010.0,118000.0,0.89676194]
[1752887993375,4.987e-05,118010.0,118000.0,1.1229283]
[1752887994810,4.987e-05,118010.0,118000.0,1.13130871]
[1752887995162,4.987e-05,118010.0,118000.0,1.1229283]
[1752887996968,4.987e-05,118010.0,118000.0,1.13158034]
[1752887997622,4.987e-05,118010.0,118000.0,1.1229283]
[1752887998481,4.987e-05,118010.0,118000.0,1.13160495]
[1752888001528,4.987e-05,118010.0,118000.0,1.1229283]
[1752888002194,4.987e-05,118010.0,118000.0,1.0560083]
[1752888002412,4.987e-05,118010.0,118000.0,1.1228483]
[1752888003522,4.987e-05,118010.0,118000.0,0.34287922]
[1752888003744,0.02118987,118010.0,118000.0,0.86205194]
[1752888004202,0.0767248,118010.0,118000.0,0.47308138]
[1752888004414,0.22925519,118010.0,118000.0,0.11884]
[1752888004629,0.22925519,118010.0,118000.0,0.34500636]
[1752888007070,0.22925519,118010.0,118000.0,0.11884]
[1752888007686,0.22301438,118010.0,118000.0,0.11884]
[1752888007930,0.22301438,118010.0,118000.0,0.34502997]
[1752888011192,0.22301438,118010.0,118000.0,0.52299592]
[1752888011389,0.22301438,118010.0,118000.0,0.52299606]
[1752888011782,0.22301438,118010.0,118000.0,0.53147042]
[1752888011981,0.21454074,118010.0,118000.0,0.53147056]
[1752888012192,0.20606703,118010.0,118000.0,0.53346056]
[1752888012418,0.20606703,118010.0,118000.0,0.52498606]
[1752888012630,4.987e-05,118010.0,118000.0,0.63903919]
[1752888013041,4.987e-05,118010.0,118000.0,0.63591919]
[1752888014491,4.987e-05,118010.0,118000.0,0.94930567]
[1752888014704,4.987e-05,118010.0,118000.0,0.7393157]
[1752888017401,4.987e-05,118010.0,118000.0,0.67153919]
[1752888020127,4.987e-05,118010.0,118000.0,0.89772916]
[1752888020341,4.987e-05,118010.0,118000.0,0.67153919]
[1752888022965,4.987e-05,118010.0,118000.0,0.89772916]
[1752888024234,4.987e-05,118010.0,118000.0,0.90612138]
[1752888038319,4.987e-05,118010.0,118000.0,0.92066223]
[1752888038583,4.987e-05,118010.0,118000.0,1.26066223]
[1752888039286,0.0004,118020.0,118010.0,0.54943871]
[1752888039479,0.0004,118020.0,118010.0,1.18668893]
[1752888039735,0.0004,118020.0,118010.0,1.18986893]
[1752888041131,0.0004,118020.0,118010.0,1.19086893]
[1752888041609,0.0004,118020.0,118010.0,1.19186893]
[1752888043584,0.0004,118020.0,118010.0,1.16146893]
[1752888044242,0.0004,118020.0,118010.0,1.17666893]
[1752888046190,0.0004,118020.0,118010.0,1.19186893]
[1752888047769,0.0004,118020.0,118010.0,1.17732808]
[1752888049955,0.0004,118020.0,118010.0,1.17728808]
[1752888051329,0.0004,118020.0,118010.0,1.19182893]
[1752888052346,0.0004,118020.0,118010.0,1.2175691]
[1752888052978,0.0004,118020.0,118010.0,1.9758401]
[1752888054557,1e-08,118020.0,118010.0,1.9758401]
[1752888058824,1e-08,118020.0,118010.0,2.20203007]
[1752888059081,1e-08,118020.0,118010.0,1.9758401]
[1752888059704,1e-08,118020.0,118010.0,2.20203007]
[1752888062965,1e-08,118020.0,118010.0,2.12155825]
[1752888063194,1e-08,118020.0,118010.0,3.90065225]
[1752888064053,1e-08,118020.0,118010.0,3.56673425]
[1752888064271,1e-08,118020.0,118010.0,2.69568134]
[1752888064885,1e-08,118020.0,118010.0,3.37348052]
[1752888065099,0.14059005,118040.0,118030.0,0.19002483]
[1752888065305,0.14269005,118040.0,118030.0,0.79416123]
[1752888066363,0.14269005,118040.0,118030.0,1.02009429]
[1752888066897,0.14569005,118040.0,118030.0,1.02009429]
[1752888068693,0.14569005,118040.0,118030.0,0.79416123]
[1752888070802,0.14569005,118040.0,118030.0,1.02009429]
[1752888071012,0.14569005,118040.0,118030.0,1.02225429]
[1752888071511,0.14569005,118040.0,118030.0,0.34445511]
[1752888071767,0.14569005,118040.0,118030.0,1.02225429]
[1752888073532,0.10878005,118040.0,118030.0,1.02540429]
[1752888073964,0.14669005,118040.0,118030.0,1.02225429]
[1752888074788,0.14369005,118040.0,118030.0,1.02225429]
[1752888075018,0.14469005,118040.0,118030.0,1.02109429]
[1752888075850,0.14469005,118040.0,118030.0,0.79516123]
[1752888085417,0.14469005,118040.0,118030.0,1.02109429]
[1752888085647,0.14469005,118040.0,118030.0,1.02964639]
[1752888086102,0.14469005,118040.0,118030.0,1.03167639]
[1752888092069,0.03931,118040.0,118030.0,1.03167639]
[1752888092277,0.0014,118040.0,118030.0,1.03470639]
[1752888092756,0.0014,118040.0,118030.0,1.03167639]
[1752888092994,0.0014,118040.0,118030.0,1.03470639]
[1752888100466,0.0014,118040.0,118030.0,1.06640639]
[1752888101741,0.0014,118040.0,118030.0,1.05000639]
[1752888102386,0.0014,118040.0,118030.0,1.03470639]
[1752888102819,0.0014,118040.0,118030.0,1.05000639]
[1752888104854,0.0014,118040.0,118030.0,1.03470639]
[1752888106453,0.0014,118040.0,118030.0,1.06620639]
[1752888106881,0.0014,118040.0,118030.0,1.03470639]
[1752888109241,0.0014,118040.0,118030.0,1.03167639]
[1752888111524,0.0014,118040.0,118030.0,0.35387721]
[1752888111733,0.0014,118040.0,118030.0,1.03470639]
[1752888112784,0.0014,118040.0,118030.0,1.04924724]
[1752888112924,0.0014,118040.0,118030.0,1.08064724]
[1752888113354,0.0014,118040.0,118030.0,1.06444724]
[1752888114355,0.0014,118040.0,118030.0,1.08074724]
[1752888114970,0.0014,118040.0,118030.0,1.06444724]
[1752888116258,0.0014,118040.0,118030.0,1.04924724]
[1752888118639,0.0014,118040.0,118030.0,1.06574724]
[1752888119054,0.0014,118040.0,118030.0,2.95596242]
[1752888119261,0.00056,118050.0,118040.0,0.19484833]
[1752888119430,0.00056,118050.0,118040.0,0.57505167]
[1752888119804,0.00056,118050.0,118040.0,0.57817167]
[1752888120213,0.00056,118050.0,118040.0,0.57505167]
[1752888120419,0.00060988,118050.0,118040.0,0.57505167]
[1752888120780,0.00160988,118050.0,118040.0,1.02691779]
[1752888122388,0.00160988,118050.0,118040.0,1.70471697]
[1752888123968,0.00160988,118050.0,118040.0,1.02691779]
[1752888124598,0.02203988,118050.0,118040.0,1.02691779]
[1752888125446,0.03803988,118050.0,118040.0,1.02691779]
[1752888126360,0.03803988,118050.0,118040.0,1.07691779]
[1752888126779,0.03484988,118050.0,118040.0,1.07691779]
[1752888126979,0.01884988,118050.0,118040.0,1.07691779]
[1752888127184,0.03803988,118050.0,118040.0,1.07691779]
[1752888129804,0.00160988,118050.0,118040.0,1.07691779]
[1752888130453,0.01740988,118050.0,118040.0,1.07691779]
[1752888130665,0.01954988,118050.0,118040.0,1.01027779]
[1752888130891,0.03843988,118050.0,118040.0,1.07691779]
[1752888131309,0.03843988,118050.0,118040.0,0.39911861]
[1752888131523,0.03843988,118050.0,118040.0,1.07691779]
[1752888132125,0.03843988,118050.0,118040.0,1.01027779]
[1752888132340,0.03843988,118050.0,118040.0,1.07479779]
[1752888133747,0.03843988,118050.0,118040.0,1.41479779]
[1752888133963,0.03843988,118050.0,118040.0,1.34815779]
[1752888134188,0.03843988,118050.0,118040.0,1.18882473]
[1752888138438,0.03843988,118050.0,118040.0,1.41475779]
[1752888140131,0.03843988,118050.0,118040.0,1.18882473]
[1752888140422,0.07131396,118050.0,118040.0,0.05]
[1752888140674,0.06385196,118050.0,118040.0,0.76331473]
[1752888140882,0.06385196,118050.0,118040.0,0.78025734]
[1752888141089,0.07232294,118050.0,118040.0,0.78025734]
[1752888141543,0.24174267,118050.0,118040.0,0.77178607]
[1752888141983,0.23327219,118050.0,118040.0,0.29450572]
[1752888142230,0.2248015,118050.0,118040.0,0.74637184]
[1752888142488,0.2248015,118050.0,118040.0,0.28440476]
[1752888142750,0.21633059,118050.0,118040.0,0.52891048]
[1752888142995,0.21633059,118050.0,118040.0,0.7633151]
[1752888143236,0.21633059,118050.0,118040.0,0.77178651]
[1752888144041,0.21633059,118050.0,118040.0,0.75484354]
[1752888144757,0.21633059,118050.0,118040.0,0.7633151]
[1752888145264,0.21633059,118050.0,118040.0,0.75484354]
[1752888147107,0.21633059,118050.0,118040.0,0.52891048]
[1752888147381,0.21633059,118050.0,118040.0,0.78025799]
[1752888147623,0.22480136,118050.0,118040.0,0.78025756]
[1752888148696,0.23322671,118050.0,118040.0,0.77178629]
[1752888151033,0.23322671,118050.0,118040.0,0.69671488]
[1752888151257,0.23322671,118050.0,118040.0,0.74633184]
[1752888151484,0.22475594,118050.0,118040.0,0.74633184]
[1752888151957,0.21628496,118050.0,118040.0,0.50186612]
[1752888152187,0.21628496,118050.0,118040.0,0.57689782]
[1752888152679,0.21628496,118050.0,118040.0,0.75480354]
[1752888152916,0.21628496,118050.0,118040.0,0.7632751]
[1752888153385,0.21628496,118050.0,118040.0,0.05]
[1752888153598,0.21628496,118050.0,118040.0,0.11656]
[1752888154050,0.21628496,118050.0,118040.0,0.34249306]
[1752888155090,0.24172096,118050.0,118040.0,0.11656]
[1752888155710,0.46765402,118050.0,118040.0,0.11656]
[1752888155903,0.32748058,118050.0,118040.0,0.11656]
[1752888159623,0.32648058,118050.0,118040.0,0.11656]
[1752888160071,0.32748058,118050.0,118040.0,0.11656]
[1752888160888,0.32848058,118050.0,118040.0,0.11656]
[1752888161112,0.24272096,118050.0,118040.0,0.11656]
[1752888161404,0.24272096,118050.0,118040.0,0.34249306]
[1752888164330,0.24272096,118050.0,118040.0,0.11656]
[1752888165160,0.46865402,118050.0,118040.0,0.11656]
[1752888165386,0.24272096,118050.0,118040.0,0.11656]
[1752888166532,0.24272096,118050.0,118040.0,0.34249306]
[1752888169687,0.24272096,118050.0,118040.0,0.11656]
[1752888169903,0.24272096,118050.0,118040.0,0.34249306]
[1752888172265,0.06288171,118050.0,118040.0,0.76530445]
[1752888172502,0.01950564,118050.0,118040.0,0.76823445]
[1752888172733,0.01950571,118050.0,118040.0,0.76823445]
[1752888172964,0.01950571,118050.0,118040.0,0.76530445]
[1752888173193,0.03644695,118050.0,118040.0,0.31343833]
[1752888173436,0.03644695,118050.0,118040.0,0.76530445]
[1752888173755,0.02797626,118050.0,118040.0,0.76530445]
[1752888173968,0.03644695,118050.0,118040.0,0.76530445]
[1752888174652,0.02797626,118050.0,118040.0,0.76835445]
[1752888174871,0.03644695,118050.0,118040.0,0.76835445]
[1752888175097,0.02797626,118050.0,118040.0,0.76835445]
[1752888175677,0.03644695,118050.0,118040.0,0.76835445]
[1752888175900,0.03644688,118050.0,118040.0,0.76835445]
[1752888176348,0.01950571,118050.0,118040.0,0.76835445]
[1752888176813,0.00260988,118050.0,118040.0,0.85386473]
[1752888177035,0.00260988,118050.0,118040.0,0.86976473]
[1752888177266,0.00260988,118050.0,118040.0,0.88486473]
[1752888179196,0.01008036,118050.0,118040.0,0.88486473]
[1752888179400,0.00908036,118050.0,118040.0,0.88486473]
[1752888179750,0.00908029,118050.0,118040.0,0.88486473]
[1752888182396,0.00060988,118050.0,118040.0,0.88486473]
[1752888183665,0.00060988,118050.0,118040.0,1.11079779]
[1752888183881,0.00060988,118050.0,118040.0,1.45079779]
[1752888187854,0.00060988,118050.0,118040.0,0.77299861]
[1752888188197,0.00060988,118050.0,118040.0,1.45079779]
[1752888188413,0.00060988,118050.0,118040.0,1.12425473]
[1752888188633,0.00060988,118050.0,118040.0,1.19069473]
[1752888189892,0.00908036,118050.0,118040.0,1.19069473]
[1752888190634,0.00908022,118050.0,118040.0,1.19069473]
[1752888190845,0.00060988,118050.0,118040.0,1.19069473]
[1752888191062,0.00060988,118050.0,118040.0,0.96478318]
[1752888191260,0.00908029,118050.0,118040.0,0.96478318]
[1752888192363,0.02803146,118050.0,118040.0,0.96478318]
[1752888192536,0.04680132,118050.0,118040.0,0.96478318]
[1752888192737,0.04373132,118050.0,118040.0,0.96478318]
[1752888193357,0.01109029,118050.0,118040.0,0.96478318]
[1752888193628,0.00908029,118050.0,118040.0,0.96478318]
[1752888193803,0.00060988,118050.0,118040.0,0.96478318]
[1752888199229,0.00908022,118050.0,118040.0,0.96478318]
[1752888199442,0.00060988,118050.0,118040.0,0.96478318]
[1752888199861,0.00908022,118050.0,118040.0,0.96478318]
[1752888200098,0.00060988,118050.0,118040.0,0.96478318]
[1752888200960,0.00060988,118050.0,118040.0,1.19073775]
[1752888201649,0.00060988,118050.0,118040.0,1.19378775]
[1752888201865,0.00060988,118050.0,118040.0,1.21028775]
[1752888203373,0.00060988,118050.0,118040.0,1.22618775]
[1752888204466,0.00060988,118050.0,118040.0,1.15974775]
[1752888204697,0.00060988,118050.0,118040.0,1.22614775]
[1752888205119,0.00060988,118050.0,118040.0,0.77423861]
[1752888205342,0.00060988,118050.0,118040.0,1.22614775]
[1752888206004,0.00060988,118050.0,118040.0,1.19374775]
[1752888206831,0.00060988,118050.0,118040.0,1.12734775]
[1752888207133,0.00060988,118050.0,118040.0,1.19374775]
[1752888207339,0.00060988,118050.0,118040.0,1.12734775]
[1752888207559,0.00060988,118050.0,118040.0,1.19374775]
[1752888207882,0.00060988,118050.0,118040.0,1.19069775]
[1752888208099,0.00060988,118050.0,118040.0,0.96474318]
[1752888208330,0.02428022,118050.0,118040.0,0.96474318]